[Event "4th Tata Steel India Rapid Open 2022"]
[Site "Kolkota"]
[Date "2022.12.01"]
[Round "9.4"]
[White "Erigaisi Arjun"]
[Black "Nihal Sarin"]
[Result "1-0"]
[ECO "C54"]
[WhiteElo "2718"]
[BlackElo "2670"]
[Annotator "TA"]
[PlyCount "117"]
[EventDate "2022.11.29"]
[EventType "tourn"]
[EventCountry "IND"]
[SourceTitle "playchess.com"]
[Source "ChessBase"]
[SourceQuality "1"]
[TimeControl "900+10"]

{[%evp 13,117,44,39,14,24,24,14,14,20,21,26,13,29,14,16,16,29,29,25,20,35,29,28,28,28,28,28,30,29,34,31,30,23,27,28,6,25,31,28,32,31,30,40,42,86,94,88,88,265,265,301,310,565,324,324,324,324,324,324,324,324,324,324,324,324,262,323,316,303,303,310,303,324,324,667,652,652,351,614,552,398,324,310,308,295,276,1150,1046,957,401,873,739,693,501,1511,1484,5181,3969,5081,5179,4670,3093,29968,29968,5691,5514]} 1. e4 {[%emt 0:00:02]} e5 {[%emt 0:00:01]} 2. Nf3 {[%emt 0:00:02]} Nc6 {[%emt 0:00:01]} 3. Bc4 {[%emt 0:00:02]} Bc5 {[%emt 0:00:02]} 4. c3 {[%emt 0:00:02]} Nf6 {[%emt 0:00:01]} 5. d3 {[%emt 0:00:01]} O-O {[%emt 0:00:17]} 6. O-O {[%emt 0:00:03]} d5 {[%emt 0:00:01]} 7. exd5 {[%emt 0:00:02]} Nxd5 {[%emt 0:00:01]} 8. a4 {[%emt 0:00:02] C54: Giuoco Piano: 4 c3 Nf6, main lines with 5 d4 and 5 d3.} (8. Re1 $5 {[%cal Rb2b4]}) 8... a5 {[%emt 0:00:03]} 9. Nbd2 {[%emt 0:00:15]} (9. Re1 {is interesting.} Bg4 10. Nbd2 Nb6 11. Bb5) 9... Nb6 {[%emt 0:00:45]} 10. Bb5 {[%emt 0:00:11] The position is equal.} Bd6 {[%emt 0:00:01]} 11. Re1 {[%emt 0:00:07]} Bg4 {[%emt 0:00:02]} 12. Ne4 {[%emt 0:00:08]} Na7 {[%emt 0:00:19]} 13. h3 {[%emt 0:00:06]} Bh5 {[%emt 0:00:31]} 14. d4 {[%emt 0:00:02]} Nxb5 {[%emt 0:01:13]} (14... exd4 {with more complications.} 15. Qxd4 Nxb5 16. axb5 Re8) 15. axb5 {[%emt 0:00:02]} exd4 {[%emt 0:00:02]} 16. Nxd6 {[%emt 0:00:03]} Qxd6 {[%emt 0:00:02]} 17. Qxd4 {[%emt 0:00:02]} Qxd4 {[%emt 0:00:03]} 18. Nxd4 {[%emt 0:00:02]} Bg6 {[%emt 0:01:01]} 19. Bf4 {[%emt 0:00:02]} Rfc8 {[%emt 0:00:01]} 20. Bg3 {[%emt 0:00:02]} a4 {[%emt 0:02:01]} 21. Re7 {[%emt 0:00:07]} Nc4 {[%emt 0:00:02] [#]} 22. Bxc7 $146 {[%emt 0:00:06]} ({Much worse is} 22. Rxc7 Rxc7 23. Bxc7 Nxb2 $17) (22. b3 {simplifies} axb3 23. Rxa8 Rxa8 24. Nxb3 Rc8 25. Rxc7 Rxc7 26. Bxc7 f6 27. g4) ({Predecessor:} 22. b3 axb3 23. Rxa8 Rxa8 24. Nxb3 Rc8 25. Rxc7 Rxc7 26. Bxc7 b6 27. Kf1 Bd3+ 28. Ke1 {½-½ (35) Nepomniachtchi,I (2784)-Leko,P (2663) chess24.com INT 2020}) 22... Kf8 {[%emt 0:02:02] Prevents b6.} 23. Rae1 {[%emt 0:00:02]} Re8 {[%emt 0:00:01]} 24. Rxe8+ {[%emt 0:00:02]} Rxe8 {[%emt 0:00:01]} 25. Rc1 {[%emt 0:00:02]} Nxb2 {[%emt 0:08:00]} 26. Bd6+ {[%emt 0:00:01]} Kg8 {[%emt 0:00:01]} 27. c4 $1 {[%emt 0:00:02][%cal Bc3c4,Bc4c5,Bc5c6][%mdl 32]} Re4 {[%emt 0:01:35] [#] Against c5} 28. c5 $1 {[%emt 0:00:01][%cal Oc5c6]} Rxd4 {[%emt 0:00:19] [#]} (28... Nd3 29. c6) 29. c6 $1 {[%emt 0:00:02]} bxc6 {[%emt 0:00:02]} (29... Rxd6 $2 30. cxb7 h5 31. b8=Q+ $18 (31. b8=B $2 {is the wrong capture.} Rb6 $19)) 30. Rxc6 {[%emt 0:00:02][%cal Rc6c8]} Rc4 $2 {[%emt 0:01:20] [#] Black cannot hold the game after this.} (30... Rd1+ $16 31. Kh2 f6) 31. Bc5 $1 $18 {[%emt 0:00:55][%cal Rc6c8]} h6 {[%emt 0:00:12]} 32. b6 {[%emt 0:00:36]} Rc1+ {[%emt 0:00:11]} 33. Kh2 {[%emt 0:00:02] Strongly threatening b7.} Rxc5 {[%emt 0:00:13]} (33... a3 $2 34. b7 Kh7 35. b8=Q $18 (35. b8=B $2 {too greedy.} a2 $19)) 34. Rxc5 {[%emt 0:00:07] Threatens to win with b7.} Be4 {[%emt 0:00:00] Prevents b7.} 35. f3 {[%emt 0:02:17]} Bb7 {[%emt 0:00:02]} 36. Rc7 {[%emt 0:00:05] Against a3} Bd5 {[%emt 0:00:01]} 37. b7 {[%emt 0:00:23]} Bxb7 {[%emt 0:00:01]} 38. Rxb7 {[%emt 0:00:01][%mdl 4096] Endgame KR-KN} Nd3 {[%emt 0:00:30]} 39. Rd7 {[%emt 0:01:11]} Nb2 {[%emt 0:00:24]} 40. Rd2 {[%emt 0:00:12]} Nc4 {[%emt 0:00:12]} (40... a3 $2 41. Rd8+ Kh7 42. Ra8) 41. Rd4 {[%emt 0:00:02]} Nb2 {[%emt 0:00:06]} 42. Rb4 {[%emt 0:00:03] Against g5} Nd3 {[%emt 0:00:07]} 43. Rxa4 {[%emt 0:00:02]} g5 $2 {[%emt 0:00:02]} (43... Nc5) 44. Kg3 {[%emt 0:00:33]} Kg7 {[%emt 0:00:01]} 45. Rd4 {[%emt 0:00:02]} Nc5 {[%emt 0:00:02]} (45... Ne5 46. f4 gxf4+ 47. Kxf4 Ng6+ 48. Kg4 Kf6 49. Rd6+ Ke7) 46. Rd6 {[%emt 0:00:18]} Ne6 {[%emt 0:00:03]} 47. Kf2 {[%emt 0:00:07]} Nf4 {[%emt 0:00:15]} 48. Rd4 {[%emt 0:00:40]} Ne6 {[%emt 0:00:08]} 49. Rc4 {[%emt 0:00:10]} f5 $2 {[%emt 0:00:32]} (49... Nf4 50. g3 Ne6) 50. g3 {[%emt 0:00:31]} Kf6 {[%emt 0:00:11]} 51. Rb4 {[%emt 0:01:48]} Ke5 {[%emt 0:00:23]} (51... f4 $142 52. g4 Nd8 53. Rb6+ Kg7) 52. Rb5+ {[%emt 0:00:34]} Kf6 {[%emt 0:00:02]} 53. Rb6 {[%emt 0:00:45] aiming for g4.} Ke5 {[%emt 0:00:07]} (53... f4 $142 54. gxf4 gxf4) 54. g4 {[%emt 0:00:16]} Kf6 {[%emt 0:00:15]} 55. Ke3 {[%emt 0:00:17]} fxg4 {[%emt 0:00:06]} 56. hxg4 {[%emt 0:00:19] Intending Ke4 and mate.} Ke5 {[%emt 0:00:04]} 57. Ra6 {[%emt 0:00:04]} Kf6 {[%emt 0:00:26]} 58. Ke4 {[%emt 0:00:04]} Kf7 {[%emt 0:00:00]} 59. Ke5 {[%emt 0:00:08] Weighted Error Value: White=0.11 (very precise) /Black=0.47} 1-0

[Event "4th Tata Steel India Rapid Open 2022"]
[Site "Kolkota"]
[Date "2022.12.01"]
[Round "9.5"]
[White "Maghsoodloo, Parham"]
[Black "Abdusattorov, Nodirbek"]
[Result "1/2-1/2"]
[ECO "C90"]
[WhiteElo "2720"]
[BlackElo "2713"]
[Annotator "TA"]
[PlyCount "115"]
[EventDate "2022.11.29"]
[EventType "tourn"]
[EventCountry "IND"]
[SourceTitle "playchess.com"]
[Source "ChessBase"]
[SourceQuality "1"]
[TimeControl "900+10"]

{[%evp 26,115,16,12,20,-13,-2,-34,0,-14,24,25,33,34,33,0,0,-108,0,-46,-49,-41,-35,-43,-31,-49,-28,-33,-22,-6,-16,-17,-20,-36,-41,-36,-15,-30,0,0,0,0,0,0,0,0,0,-95,-95,-95,-86,-79,-79,-86,-79,-81,-79,-82,-83,-84,-84,-80,-80,-95,0,0,0,0,0,0,0,0,0,0,0,0,0,0,0,0,0,0,0,0,0,0,0,0,0,0,0,0]} 1. e4 {[%emt 0:00:01]} e5 {[%emt 0:00:02]} 2. Nf3 {[%emt 0:00:02]} Nc6 {[%emt 0:00:01]} 3. Bb5 {[%emt 0:00:01]} a6 {[%emt 0:00:05]} 4. Ba4 {[%emt 0:00:01]} Nf6 {[%emt 0:00:01]} 5. O-O {[%emt 0:00:02]} Be7 {[%emt 0:00:03]} 6. Re1 {[%emt 0:00:04]} b5 {[%emt 0:00:01]} 7. Bb3 {[%emt 0:00:01]} d6 {[%emt 0:00:02]} 8. c3 {[%emt 0:00:07]} O-O {[%emt 0:00:02]} 9. h3 {[%emt 0:00:01]} Na5 {[%emt 0:00:02]} 10. Bc2 {[%emt 0:00:02]} c5 {[%emt 0:00:01]} 11. d3 {[%emt 0:00:26]} Re8 {[%emt 0:00:13]} 12. Nbd2 {[%emt 0:00:03][%cal Bb1d2,Bd2f1,Bf1g3,Bg3e4][%mdl 32]} Bf8 {[%emt 0:16:37]} 13. Nf1 {[%emt 0:16:29]} Nc6 {[%emt 0:00:10]} 14. Ng3 $1 {[%emt 0:00:10][%mdl 4] now scores much better than the old 14.Bg5.} h6 {[%emt 0:00:10] C90: Closed Ruy Lopez with 7...d6: Early deviations.} 15. Nh2 {[%emt 0:00:10]} Be6 {[%emt 0:00:10]} 16. Qf3 {[%emt 0:00:10]} g6 {[%emt 0:00:10] [#] Black is slightly better.} 17. h4 $146 {[%emt 0:00:00]} ({Predecessor:} 17. Nhf1 d5 18. exd5 Nxd5 19. Ne3 Qf6 20. Bd1 Rad8 21. Ng4 Qxf3 22. Bxf3 Bxg4 23. hxg4 {½-½ (60) Saric,I (2626)-Kuljasevic,D (2561) Zadar 2012}) 17... d5 {[%emt 0:00:00]} 18. exd5 {[%emt 0:00:00]} Bxd5 {[%emt 0:00:00]} 19. Ne4 {[%emt 0:00:00]} Bg7 {[%emt 0:00:00]} 20. Qe3 {[%emt 0:00:00]} (20. Rd1 $5 {[%cal Rc1h6]}) 20... Nd7 {[%emt 0:00:00]} 21. Qh3 {[%emt 0:00:00]} (21. Ng4 $11 {keeps the balance.}) 21... Be6 {[%emt 0:00:00]} (21... f5 $17 22. Nd2 Nf6) 22. Qg3 {[%emt 0:00:00]} (22. Qf3 $11 {should be considered.}) 22... Ne7 $15 {[%emt 0:00:00]} 23. Nf3 {[%emt 0:00:00][%cal Oh4h5]} Nf5 {[%emt 0:00:00] Prevents h5.} 24. Qh2 {[%emt 0:00:00]} h5 {[%emt 0:00:00]} 25. Bb3 {[%emt 0:00:00]} Bxb3 {[%emt 0:00:00]} 26. axb3 {[%emt 0:00:00]} Qb6 {[%emt 0:00:00]} 27. Qh3 {[%emt 0:00:00]} Nf6 {[%emt 0:01:50] Inhibits g4.} 28. Nxf6+ {[%emt 0:00:00]} Bxf6 {[%emt 0:00:00]} 29. g4 {[%emt 0:00:00]} hxg4 {[%emt 0:00:00]} 30. Qxg4 {[%emt 0:00:00]} Ng7 {[%emt 0:00:00][%cal Bf5g7,Bg7h5,Bh5f4,Bf4d5][%mdl 32] Inhibits h5.} (30... Qe6 {looks sharper.} 31. Re4 Qxb3 32. h5 Qd1+) 31. Bg5 {[%emt 0:00:00]} Nh5 {[%emt 0:00:00]} (31... Rad8 $5 {[%cal Rd8d3]}) 32. Bxf6 $1 {[%emt 0:00:00]} Qxf6 {[%emt 0:00:00]} 33. Re3 $1 {[%emt 0:00:00]} Re6 {[%emt 0:00:00]} 34. Rae1 {[%emt 0:00:00][%cal Re3e5]} Rae8 {[%emt 0:00:00]} 35. Qg5 {[%emt 0:00:18]} Nf4 {[%emt 0:00:00] [#] Threatens to win with ...Nh3+.} 36. Kh2 {[%emt 0:00:44] Prevents Nh3.} (36. Nxe5 $11 Qxg5+ 37. hxg5) 36... Nd5 $17 {[%emt 0:00:00]} 37. Qxf6 {[%emt 0:01:25]} Rxf6 {[%emt 0:00:00]} 38. Rxe5 {[%emt 0:00:01]} Rxe5 {[%emt 0:00:00]} 39. Rxe5 {[%emt 0:00:17]} Rxf3 {[%emt 0:00:00]} 40. Rxd5 {[%emt 0:00:01] Black must now prevent Kg2.} Rxf2+ {[%emt 0:00:00][%mdl 4096] Endgame KR-KR} 41. Kg3 {[%emt 0:00:01]} Rxb2 {[%emt 0:00:00]} 42. Rxc5 {[%emt 0:00:02]} Rxb3 {[%emt 0:00:00]} 43. Kf4 {[%emt 0:00:02]} b4 {[%emt 0:00:00]} 44. cxb4 {[%emt 0:00:02]} Rxb4+ {[%emt 0:00:00]} (44... Rxd3 $17 {...Rb3 is the strong threat.} 45. b5 axb5 46. Rxb5 Rd4+ 47. Kg5 Kg7) 45. Ke5 $1 $11 {[%emt 0:00:01] The position is equal.} Rxh4 {[%emt 0:00:08]} 46. d4 {[%emt 0:00:01][%cal Bd3d4,Bd4d5,Bd5d6,Bd6d7][%mdl 32]} Kg7 {[%emt 0:01:44] Hoping for ...f6+.} 47. d5 {[%emt 0:00:02]} Rh5+ {[%emt 0:00:58]} 48. Kd6 {[%emt 0:00:01]} g5 {[%emt 0:00:03][%cal Bg6g5,Bg5g4,Bg4g3][%mdl 32]} 49. Rc1 {[%emt 0:00:55]} g4 {[%emt 0:00:01]} 50. Kc6 {[%emt 0:00:01]} f5 {[%emt 0:00:04]} 51. d6 {[%emt 0:00:03]} g3 {[%emt 0:00:17]} 52. d7 {[%emt 0:00:49]} Rh8 {[%emt 0:00:07] Against d8Q} 53. Rh1 {[%emt 0:00:13][%mdl 64] [#] Rxh8 would kill now.} Rd8 {[%emt 0:00:39] And now ...Kf6 would win.} 54. Rh3 {[%emt 0:00:03]} f4 {[%emt 0:00:06]} 55. Rh4 {[%emt 0:00:01]} Kg6 {[%emt 0:00:21] ( -> ...Kf5)} 56. Rxf4 {[%emt 0:00:03]} Kg5 {[%emt 0:00:00]} 57. Rf7 {[%emt 0:00:58]} Kg4 {[%emt 0:00:04]} 58. Kc7 {[%emt 0:00:16] Weighted Error Value: White=0.12 (very precise) /Black=0.10 (very precise)} 1/2-1/2